bitfinex/quotes_BTCUSD_20230113
["timestamp","ask_amount","ask_price","bid_price","bid_amount"]
[1673636936996,2.79892493,19284.0,19283.0,0.002]
[1673636939212,2.20930929,19284.0,19283.0,0.0917]
[1673636939453,2.20930929,19284.0,19283.0,0.79068567]
[1673636940376,1.69074529,19284.0,19283.0,0.79068567]
[1673636940907,0.653324,19284.0,19283.0,0.79068567]
[1673636941142,0.653324,19284.0,19283.0,1.00850467]
[1673636941395,0.653324,19284.0,19283.0,0.79068567]
[1673636942350,0.653324,19284.0,19283.0,1.55133892]
[1673636942609,0.136,19284.0,19283.0,1.55133892]
[1673636944071,0.136,19284.0,19283.0,1.40817344]
[1673636944322,0.136,19284.0,19283.0,1.98050696]
[1673636945044,1.10941404,19288.0,19283.0,1.97850696]
[1673636945293,0.518479,19288.0,19287.0,0.0888]
[1673636945535,0.518431,19289.0,19287.0,0.0888]
[1673636945536,1.62797324,19289.0,19287.0,0.6773781]
[1673636945807,1.0372002,19288.0,19287.0,0.4988781]
[1673636946069,1.0372002,19288.0,19287.0,0.6778781]
[1673636946299,1.0372002,19288.0,19287.0,0.67898123]
[1673636946540,1.0372002,19288.0,19287.0,0.6778781]
[1673636946792,1.03718961,19288.0,19287.0,0.6778781]
[1673636947132,0.07234204,19289.0,19287.0,0.6778781]
[1673636947392,0.07234204,19289.0,19288.0,0.1792]
[1673636947881,1.24153447,19289.0,19288.0,0.1792]
[1673636948127,1.10953447,19289.0,19288.0,0.1792]
[1673636948371,1.14453447,19289.0,19288.0,0.1792]
[1673636948605,1.10953447,19289.0,19288.0,0.1792]
[1673636949093,1.21853447,19289.0,19288.0,0.1842]
[1673636949598,1.21853447,19289.0,19288.0,0.33921592]
[1673636949841,1.73696447,19289.0,19288.0,0.33921592]
[1673636950107,2.25539447,19289.0,19288.0,0.1842]
[1673636950885,2.39335737,19289.0,19288.0,0.005]
[1673636951127,3.32606043,19289.0,19288.0,0.005]
[1673636952098,3.89296043,19289.0,19288.0,0.005]
[1673636952343,3.98256043,19289.0,19288.0,0.005]
[1673636952556,3.99106043,19289.0,19288.0,0.005]
[1673636953028,4.45166789,19289.0,19288.0,0.005]
[1673636953564,4.45166789,19289.0,19288.0,0.00017858]
[1673636953565,4.95564053,19289.0,19288.0,0.00017858]
[1673636953808,5.36629427,19289.0,19288.0,0.00017858]
[1673636954057,0.1,19288.0,19282.0,0.20287185]
[1673636954318,0.0897,19286.0,19284.0,0.00019]
[1673636954600,2.91738143,19285.0,19284.0,0.00019]
[1673636954831,3.21738143,19285.0,19284.0,0.00019]
[1673636955072,3.30628143,19285.0,19284.0,0.00019]
[1673636955790,3.31478143,19285.0,19284.0,0.00019]
[1673636956040,3.70708317,19285.0,19281.0,0.17031681]
[1673636956287,1.34759843,19284.0,19281.0,0.01530089]
[1673636956525,0.1,19282.0,19281.0,0.01530089]
[1673636956769,2.47442843,19282.0,19281.0,0.01530089]
[1673636957527,1.047751,19280.0,19279.0,0.31012243]
[1673636957760,1.037344,19280.0,19279.0,0.31012243]
[1673636958275,1.037344,19280.0,19279.0,9.06e-05]
[1673636958795,1.137344,19280.0,19279.0,9.06e-05]
[1673636959026,1.22670427,19280.0,19279.0,9.06e-05]
[1673636959255,1.24170427,19280.0,19279.0,9.06e-05]
[1673636960301,1.54170427,19280.0,19279.0,9.06e-05]
[1673636960531,2.99380255,19280.0,19279.0,6e-07]
[1673636961010,2.98348995,19280.0,19279.0,6e-07]
[1673636961974,2.96848995,19280.0,19279.0,6e-07]
[1673636962246,2.77898995,19280.0,19279.0,6e-07]
[1673636962495,2.37502455,19280.0,19279.0,6e-07]
[1673636962743,1.037344,19280.0,19279.0,6e-07]
[1673636963492,1.037344,19280.0,19279.0,0.00034736]
[1673636963493,0.518672,19280.0,19279.0,0.00034736]
[1673636963741,0.653672,19280.0,19279.0,6e-07]
[1673636964223,2.31591875,19280.0,19279.0,6e-07]
[1673636964452,1.172344,19280.0,19279.0,6e-07]
[1673636964701,1.337344,19280.0,19279.0,6e-07]
[1673636964953,3.02668676,19280.0,19279.0,6e-07]
[1673636965185,3.63478851,19280.0,19279.0,6e-07]
[1673636965444,3.85688851,19280.0,19279.0,6e-07]
[1673636965671,3.5350691,19280.0,19279.0,6e-07]
[1673636965939,3.4020691,19280.0,19279.0,6e-07]
[1673636966173,3.5370691,19280.0,19279.0,6e-07]
[1673636966441,3.0774911,19280.0,19279.0,6e-07]
[1673636966690,3.85481821,19280.0,19279.0,6e-07]
[1673636966920,3.86331821,19280.0,19279.0,6e-07]
[1673636967431,3.76861387,19280.0,19279.0,6e-07]
[1673636967659,3.53316093,19280.0,19279.0,6e-07]
[1673636967901,3.54026476,19280.0,19279.0,6e-07]
[1673636968153,3.54015993,19280.0,19279.0,6e-07]
[1673636968377,3.49168355,19280.0,19279.0,6e-07]
[1673636969119,3.54115993,19280.0,19279.0,6e-07]
[1673636969381,3.91500423,19280.0,19279.0,6e-07]
[1673636969846,3.54115993,19280.0,19279.0,6e-07]
[1673636970313,4.10735993,19280.0,19279.0,6e-07]
[1673636970801,4.19381602,19280.0,19279.0,6e-07]
[1673636971052,4.01531602,19280.0,19279.0,6e-07]
[1673636971294,3.57931602,19280.0,19279.0,6e-07]
[1673636971549,2.35306726,19280.0,19279.0,6e-07]
[1673636971794,3.57936963,19280.0,19279.0,6e-07]
[1673636972037,3.39079163,19280.0,19279.0,6e-07]
[1673636972282,2.67764526,19280.0,19279.0,6e-07]
[1673636972524,2.65306726,19280.0,19279.0,6e-07]
[1673636972762,4.01536367,19280.0,19279.0,6e-07]
[1673636972974,2.97764526,19280.0,19279.0,6e-07]
[1673636973221,2.65306726,19280.0,19279.0,6e-07]
[1673636973482,2.97764526,19280.0,19279.0,6e-07]
[1673636973737,2.88268917,19280.0,19279.0,6e-07]
[1673636973981,0.65456717,19280.0,19279.0,6e-07]
[1673636974708,0.136,19280.0,19279.0,6e-07]
[1673636975203,0.136,19280.0,19279.0,0.63511581]
[1673636975463,0.136,19280.0,19279.0,0.94269281]
[1673636975702,0.136,19280.0,19279.0,1.61629047]
[1673636976001,0.136,19280.0,19279.0,1.61667151]
[1673636976243,0.518616,19283.0,19279.0,2.23537051]
[1673636976511,0.518616,19283.0,19280.0,0.217861]
[1673636976757,0.518616,19283.0,19281.0,0.217848]
[1673636976998,1.037207,19283.0,19279.0,1.91709247]
[1673636977246,1.32983187,19283.0,19279.0,0.72481581]
[1673636977487,1.32983187,19283.0,19279.0,0.63511581]
[1673636977488,0.135,19280.0,19279.0,0.63511581]
[1673636977734,0.08491916,19281.0,19279.0,0.63511581]
[1673636977986,0.08491916,19281.0,19280.0,0.217861]
[1673636978464,0.08491916,19281.0,19280.0,0.217862]
[1673636979009,0.08491916,19281.0,19279.0,0.63578989]
[1673636979010,0.60356416,19281.0,19279.0,0.63578989]
[1673636979248,0.61756416,19281.0,19279.0,0.63578989]
[1673636979506,0.61756416,19281.0,19280.0,0.217864]
[1673636979746,0.61756416,19281.0,19279.0,0.63578989]
[1673636980229,0.61756416,19281.0,19280.0,0.217862]
[1673636980471,0.60356416,19281.0,19279.0,0.63578989]
[1673636980716,0.61456416,19281.0,19279.0,0.63511581]
[1673636980969,1.13320916,19281.0,19279.0,6e-07]
[1673636981964,1.12220916,19281.0,19279.0,6e-07]
[1673636982203,1.13620916,19281.0,19279.0,6e-07]
[1673636982701,0.3,19280.0,19279.0,6e-07]
[1673636982944,0.518672,19280.0,19279.0,6e-07]
[1673636983184,0.518672,19280.0,19279.0,0.54900606]
[1673636983428,0.518672,19280.0,19279.0,0.76620598]
[1673636983929,0.529672,19280.0,19279.0,0.76620598]
[1673636984186,0.529672,19280.0,19279.0,0.76688006]
[1673636984433,0.529672,19280.0,19279.0,0.76620598]
[1673636985107,0.529672,19280.0,19279.0,6e-07]
[1673636986135,1.048344,19280.0,19279.0,6e-07]
[1673636986381,1.448344,19280.0,19279.0,6e-07]
[1673636986633,2.26916069,19280.0,19279.0,6e-07]
[1673636986875,3.63144774,19280.0,19279.0,6e-07]
[1673636987618,3.72389637,19280.0,19279.0,6e-07]
[1673636987873,3.73239637,19280.0,19279.0,6e-07]
[1673636988639,3.72139637,19280.0,19279.0,6e-07]
[1673636989374,0.12529627,19279.0,19278.0,0.01609998]
[1673636989607,3.12770832,19279.0,19278.0,0.01609998]
[1673636990342,3.21720832,19279.0,19278.0,0.01609998]
[1673636990798,3.35320832,19279.0,19278.0,0.01609998]
[1673636991037,3.21720832,19279.0,19278.0,0.01609998]
[1673636991318,3.35320832,19279.0,19278.0,0.01609998]
[1673636992612,4.33300176,19279.0,19278.0,0.01609998]
[1673636992861,4.85634277,19279.0,19278.0,0.01609998]
[1673636993595,4.85634277,19279.0,19278.0,0.00057059]
[1673636993596,5.06551723,19279.0,19278.0,0.00057059]
[1673636994324,6.6221005,19279.0,19278.0,0.00057059]
[1673636994567,6.4861005,19279.0,19278.0,0.00057059]
[1673636995058,6.71867947,19279.0,19278.0,0.00057059]
[1673636995302,6.4861005,19279.0,19278.0,0.00057059]
[1673636995786,6.4861005,19279.0,19278.0,5.9e-07]
[1673636996073,6.71867947,19279.0,19277.0,0.01530089]
[1673636996324,1.1387107,19278.0,19277.0,0.01530089]
[1673636996567,4.62961423,19278.0,19277.0,0.01530089]
[1673636996812,5.73263676,19278.0,19277.0,0.01530089]
[1673636997308,4.69105349,19278.0,19277.0,0.01530089]
[1673636997610,6.24763676,19278.0,19277.0,0.01530089]
[1673636998361,6.8371975,19278.0,19277.0,0.01530089]
[1673636998610,7.0965675,19278.0,19277.0,0.01530089]
[1673636998857,7.0965675,19278.0,19277.0,8.9e-07]
[1673636999102,7.25162014,19278.0,19276.0,0.01661676]
[1673636999349,3.5974649,19277.0,19276.0,0.01661676]
[1673636999604,3.60563763,19277.0,19276.0,0.01661676]
[1673636999846,5.1622209,19277.0,19276.0,0.01661676]
[1673637000118,5.2519209,19277.0,19276.0,0.01661676]
[1673637000870,4.79836016,19277.0,19276.0,0.01661676]
[1673637001114,3.24177689,19277.0,19276.0,0.01661676]
[1673637001375,3.37777689,19277.0,19276.0,0.01661676]
[1673637002368,3.31933906,19277.0,19276.0,0.01661676]
[1673637002617,2.83223906,19277.0,19276.0,0.01661676]
[1673637002869,2.82183306,19277.0,19276.0,0.01661676]
[1673637003121,3.14641106,19277.0,19276.0,0.01661676]
[1673637003377,2.82183306,19277.0,19276.0,0.01661676]
[1673637003627,3.14641106,19277.0,19276.0,0.01661676]
[1673637003885,3.40359896,19277.0,19276.0,0.01661676]
[1673637004106,3.53959896,19277.0,19276.0,0.01761676]
[1673637004405,3.40359896,19277.0,19276.0,0.01661676]
[1673637004655,3.8656597,19277.0,19276.0,0.01661676]
[1673637004923,4.3016597,19277.0,19276.0,0.01761676]
[1673637005202,3.76622078,19277.0,19276.0,0.01661676]
[1673637005444,3.76622078,19277.0,19276.0,0.01761676]
[1673637005445,5.4590602,19277.0,19276.0,0.01761676]
[1673637005938,7.15731122,19277.0,19276.0,0.001]
[1673637006181,0.05215086,19275.0,19274.0,0.01605703]
[1673637006429,4.70259335,19275.0,19274.0,0.01605703]
[1673637006674,4.96517342,19275.0,19274.0,0.01605703]
[1673637006934,4.51161268,19275.0,19274.0,0.01605703]
[1673637007192,4.25220268,19275.0,19274.0,0.01605703]
[1673637007684,4.85832295,19275.0,19274.0,0.01705703]
[1673637007939,4.38820268,19275.0,19274.0,0.01705703]
[1673637008185,4.33592261,19275.0,19274.0,0.01705703]
[1673637008685,3.80968991,19275.0,19274.0,0.01705703]
[1673637008932,3.88084382,19275.0,19274.0,0.01705703]
[1673637009183,3.80968991,19275.0,19274.0,0.01705703]
[1673637009439,3.4072054,19275.0,19274.0,0.01705703]
[1673637009680,1.83178435,19275.0,19274.0,0.01705703]
[1673637010172,2.4811065,19275.0,19274.0,0.01705703]
[1673637010416,3.89790192,19275.0,19274.0,0.01705703]
[1673637010671,4.37113779,19275.0,19274.0,0.01705703]
[1673637011201,4.37113779,19275.0,19273.0,0.01622262]
[1673637011452,2.61549504,19274.0,19273.0,0.01622262]
[1673637011710,2.61549504,19274.0,19272.0,0.01605703]
[1673637011711,0.1,19273.0,19272.0,0.01605703]
[1673637011955,3.66758704,19273.0,19272.0,0.01605703]
[1673637012206,4.01986711,19273.0,19272.0,0.01605703]
[1673637012715,4.01986711,19273.0,19271.0,0.01763335]
[1673637012716,0.1,19272.0,19271.0,0.01763335]
[1673637012984,3.10698175,19272.0,19271.0,0.01763335]
[1673637013231,3.2892083,19272.0,19271.0,0.01763335]
[1673637013491,3.34148837,19272.0,19271.0,0.01763335]
[1673637013996,3.47848837,19272.0,19271.0,0.01763335]
[1673637014253,3.38938837,19272.0,19271.0,0.01763335]
[1673637014529,3.29968837,19272.0,19271.0,0.01763335]
[1673637014772,1.83495064,19272.0,19271.0,0.01763335]
[1673637015024,1.73536007,19272.0,19271.0,0.01763335]
[1673637015522,1.43547968,19272.0,19271.0,0.01763335]
[1673637015768,1.38319961,19272.0,19271.0,0.01763335]
[1673637016013,1.38308,19272.0,19271.0,0.01763335]
[1673637016507,1.46309493,19272.0,19271.0,0.01763335]
[1673637016758,1.38308,19272.0,19271.0,0.01763335]
[1673637017004,1.65730821,19272.0,19271.0,0.01763335]
[1673637017260,1.75730821,19272.0,19271.0,0.01763335]
[1673637017995,3.09983182,19272.0,19271.0,0.01763335]
[1673637018737,2.810329,19272.0,19271.0,0.01763335]
[1673637019281,2.89286927,19272.0,19271.0,0.01763335]
[1673637019533,1.26772027,19272.0,19271.0,0.01763335]
[1673637019778,1.25731427,19272.0,19271.0,0.01763335]
[1673637020283,1.12031427,19272.0,19271.0,0.01763335]
[1673637020524,1.35731427,19272.0,19271.0,0.01863335]
[1673637020772,1.25731427,19272.0,19271.0,0.01763335]
[1673637021028,1.25731427,19272.0,19271.0,0.01863335]
[1673637021029,2.61321172,19272.0,19271.0,0.01863335]
[1673637021283,3.22791172,19272.0,19271.0,0.01863335]
[1673637021535,3.23641172,19272.0,19271.0,0.01863335]
[1673637022271,3.23641172,19272.0,19271.0,0.01763335]
[1673637022517,3.10041172,19272.0,19271.0,0.01763335]
[1673637022768,3.10041172,19272.0,19271.0,0.01863335]
[1673637022769,3.23741172,19272.0,19271.0,0.01863335]
[1673637023035,3.10041172,19272.0,19271.0,0.01763335]
[1673637023293,3.23741172,19272.0,19271.0,0.01863335]
[1673637023761,3.23741172,19272.0,19271.0,0.00066038]
[1673637023993,3.12474903,19272.0,19271.0,0.00066038]
[1673637024721,3.64363603,19272.0,19271.0,0.00066038]
[1673637024974,3.13955616,19272.0,19271.0,0.00066038]
[1673637025458,2.81497816,19272.0,19271.0,0.00048841]
[1673637025688,3.13955616,19272.0,19271.0,0.00048841]
[1673637025933,2.81497816,19272.0,19271.0,0.00048841]
[1673637026193,3.13955616,19272.0,19271.0,0.00048841]
[1673637026425,3.35643603,19272.0,19271.0,0.00048841]
[1673637027231,3.43295768,19272.0,19271.0,0.00048841]
[1673637027728,0.17752671,19271.0,19270.0,0.01187487]
[1673637027969,3.07246574,19271.0,19270.0,0.01187487]
[1673637028209,3.39704374,19271.0,19270.0,0.01187487]
[1673637028956,3.20846574,19271.0,19270.0,0.01287487]
[1673637029199,3.53304374,19271.0,19270.0,0.01287487]
[1673637029932,3.21887174,19271.0,19270.0,0.01287487]
[1673637030208,3.20846574,19271.0,19270.0,0.01287487]
[1673637030332,3.53304374,19271.0,19270.0,0.01287487]
[1673637030573,3.20846574,19271.0,19270.0,0.01287487]
[1673637030809,3.53304374,19271.0,19270.0,0.01287487]
[1673637031512,3.20846574,19271.0,19270.0,0.01287487]
[1673637031754,3.43304374,19271.0,19270.0,0.01287487]
[1673637031983,3.10846574,19271.0,19270.0,0.01287487]
[1673637032197,3.43304374,19271.0,19270.0,0.01287487]
[1673637032715,3.10846574,19271.0,19270.0,0.01287487]
[1673637032957,3.43304374,19271.0,19270.0,0.01287487]
[1673637033194,3.10846574,19271.0,19270.0,0.01287487]
[1673637033437,3.43304374,19271.0,19270.0,0.01287487]
[1673637033674,3.10846574,19271.0,19270.0,0.01287487]
[1673637033906,3.43304374,19271.0,19270.0,0.01287487]
[1673637034140,3.10846574,19271.0,19270.0,0.01287487]
[1673637034379,3.43304374,19271.0,19270.0,0.01287487]
[1673637034860,3.10846574,19271.0,19270.0,0.01287487]
[1673637035090,3.43304374,19271.0,19270.0,0.01287487]
[1673637035362,3.3742434,19271.0,19270.0,0.01287487]
[1673637035589,3.6988214,19271.0,19270.0,0.01287487]
[1673637035830,3.35551703,19271.0,19270.0,0.01287487]
[1673637036801,3.43031499,19271.0,19270.0,0.01287487]
[1673637037500,3.11614299,19271.0,19270.0,0.01287487]
[1673637038723,3.04134503,19271.0,19270.0,0.01287487]
[1673637039884,3.37436334,19271.0,19270.0,0.01287487]
[1673637040116,3.8922689,19271.0,19270.0,0.01287487]
[1673637040596,3.59316828,19271.0,19270.0,4.87e-06]
[1673637040850,6.48222083,19271.0,19270.0,4.87e-06]
[1673637041096,6.48222083,19271.0,19268.0,0.01672225]
[1673637041097,0.12527513,19269.0,19268.0,0.01672225]
[1673637041333,5.49903123,19269.0,19268.0,0.01672225]
[1673637041618,3.92470223,19269.0,19268.0,0.01672225]
[1673637041830,4.40176029,19269.0,19268.0,0.01672225]
[1673637042060,6.27327804,19269.0,19268.0,0.01672225]
[1673637042315,6.14887016,19269.0,19268.0,0.01672225]
[1673637042559,4.71606029,19269.0,19268.0,0.01672225]
[1673637042797,4.43672216,19269.0,19268.0,0.01672225]
[1673637043032,4.43672216,19269.0,19265.0,0.01815617]
[1673637043033,0.1,19268.0,19265.0,0.01815617]
[1673637043264,0.15484219,19266.0,19264.0,0.01722864]
[1673637043509,5.0520196,19265.0,19264.0,0.01722864]
[1673637043751,5.20567741,19265.0,19264.0,0.01722864]
[1673637043980,4.79181173,19265.0,19264.0,0.01722864]
[1673637044230,0.1,19264.0,19261.0,0.01763335]
[1673637044478,2.69569003,19263.0,19261.0,0.01763335]
[1673637044713,1.647087,19263.0,19261.0,0.01763335]
[1673637044956,1.12811745,19262.0,19261.0,0.01263335]
[1673637045188,2.59950745,19262.0,19261.0,0.01263335]
[1673637045878,3.088706,19262.0,19261.0,0.01263335]
[1673637046137,0.769156,19262.0,19261.0,0.01263335]
[1673637046391,0.25,19262.0,19261.0,0.53571042]
[1673637046621,0.98012319,19266.0,19262.0,0.1]
[1673637046622,0.15484219,19266.0,19262.0,0.1]
[1673637046863,0.24226642,19266.0,19261.0,1.08560871]
[1673637047104,0.08624759,19264.0,19262.0,0.218118]
[1673637047353,0.09066883,19263.0,19262.0,8.462e-05]
[1673637047585,0.09066883,19263.0,19262.0,0.001]
[1673637047586,0.30097377,19263.0,19262.0,0.001]
[1673637047840,0.09897342,19262.0,19261.0,0.01263335]
[1673637048520,0.09897342,19262.0,19261.0,0.33076735]
[1673637048774,0.519129,19263.0,19261.0,0.88806044]
[1673637049023,0.519129,19263.0,19261.0,0.66992644]
[1673637049269,0.136,19263.0,19262.0,0.408123]
[1673637049513,0.136,19263.0,19262.0,0.40820762]
[1673637049770,0.271,19263.0,19262.0,0.30820762]
[1673637050014,0.76302888,19266.0,19263.0,0.1]
[1673637050296,1.28207888,19266.0,19263.0,0.1]
[1673637050536,1.28207888,19266.0,19264.0,8.461e-05]
[1673637051082,1.28207888,19266.0,19262.0,0.089]
[1673637051326,0.09669035,19265.0,19263.0,0.58143335]
[1673637052069,0.09669035,19265.0,19263.0,0.58043335]
[1673637052322,0.09669035,19265.0,19264.0,0.219093]
[1673637052570,0.09669035,19265.0,19263.0,0.58043335]
[1673637053063,0.19569035,19265.0,19263.0,0.58243335]
[1673637053315,0.09669035,19265.0,19263.0,0.58043335]
[1673637053561,0.23169035,19265.0,19264.0,0.001]
[1673637053823,0.23169035,19265.0,19263.0,0.58043335]
[1673637054065,0.33069035,19265.0,19263.0,0.58243335]
[1673637054809,0.33069035,19265.0,19264.0,0.218093]
[1673637055064,0.33069035,19265.0,19263.0,0.58243335]
[1673637055300,0.19569035,19265.0,19263.0,0.58243335]
[1673637055545,0.025,19265.0,19264.0,8.461e-05]
[1673637055797,0.025,19265.0,19264.0,0.218093]
[1673637056045,0.025,19265.0,19264.0,0.318093]
[1673637056291,1.13805973,19266.0,19264.0,0.218093]
[1673637056547,0.19433311,19265.0,19264.0,0.002]
[1673637056790,1.01340911,19265.0,19264.0,0.002]
[1673637057033,1.53248511,19265.0,19264.0,0.002]
[1673637057779,2.57097348,19265.0,19264.0,0.002]
[1673637058272,2.89555148,19265.0,19264.0,0.002]
[1673637058763,2.57097348,19265.0,19264.0,0.002]
[1673637059002,2.89555148,19265.0,19264.0,0.002]
[1673637059246,2.57097348,19265.0,19264.0,0.002]
[1673637059529,3.10359864,19265.0,19264.0,0.002]
[1673637059792,3.09004948,19265.0,19264.0,0.002]
[1673637060985,0.07758684,19264.0,19261.0,0.10183335]
[1673637061258,1.038258,19263.0,19261.0,0.10183335]
[1673637061745,1.038258,19263.0,19262.0,0.218117]
[1673637061994,1.038258,19263.0,19261.0,0.6819454]
[1673637062240,0.519129,19263.0,19262.0,0.55222371]
[1673637062506,0.618095,19265.0,19263.0,0.1]
[1673637062742,0.519095,19265.0,19263.0,0.1]
[1673637062988,0.60752971,19266.0,19264.0,0.218094]
[1673637063244,0.07992706,19265.0,19262.0,1.61392099]
[1673637063506,0.015,19264.0,19263.0,0.1]
[1673637063756,0.07992706,19265.0,19263.0,0.318104]
[1673637063991,0.07992706,19265.0,19263.0,0.1]
[1673637064259,0.07992706,19265.0,19264.0,0.218094]
[1673637064498,0.009,19265.0,19264.0,0.307794]
[1673637064745,0.519027,19267.0,19264.0,1.42101225]
[1673637064988,0.519027,19267.0,19264.0,1.30307922]
[1673637065230,0.519011,19268.0,19265.0,0.218079]
[1673637065477,0.519011,19268.0,19264.0,1.16167229]
[1673637065726,0.039,19265.0,19264.0,0.608781]
[1673637065972,0.51896,19270.0,19264.0,1.435653]
[1673637066217,0.51896,19270.0,19265.0,0.54275156]
[1673637066218,0.136,19267.0,19265.0,0.54275156]
[1673637066470,0.28254699,19270.0,19266.0,0.496063]
[1673637066722,0.07224205,19270.0,19267.0,0.089]
[1673637067009,0.07224205,19270.0,19268.0,0.21825922]
[1673637067252,0.08590571,19271.0,19267.0,1.21602468]
[1673637067492,0.09422442,19269.0,19268.0,0.218034]
[1673637067738,1.13250563,19269.0,19266.0,0.004]
[1673637067984,1.03832336,19268.0,19266.0,0.004]
[1673637068273,1.55732636,19268.0,19266.0,0.004]
[1673637068521,0.519003,19268.0,19265.0,0.60440894]
[1673637068789,0.72930794,19268.0,19266.0,0.218059]
[1673637069011,0.519003,19268.0,19266.0,0.004]
[1673637069258,0.519003,19268.0,19267.0,0.218051]
[1673637069506,1.55731823,19268.0,19267.0,0.218051]
[1673637069750,1.67231734,19268.0,19266.0,0.54673486]
[1673637069995,1.12343791,19268.0,19266.0,0.54673486]
[1673637070498,1.25943791,19268.0,19267.0,0.21805]
[1673637070753,1.25943791,19268.0,19266.0,0.55073486]
[1673637070754,2.59775802,19268.0,19266.0,0.55073486]
[1673637070993,1.25943791,19268.0,19266.0,0.55073486]
[1673637071258,1.25943791,19268.0,19266.0,0.004]
[1673637071505,0.08803672,19267.0,19264.0,0.59129564]
[1673637071754,0.08803672,19267.0,19263.0,0.00019]
[1673637071755,0.21030494,19266.0,19263.0,0.00019]
[1673637072000,1.54845694,19265.0,19263.0,0.00019]
[1673637072487,1.338152,19265.0,19263.0,0.00019]
[1673637072748,0.08767299,19264.0,19263.0,0.00019]
[1673637072999,1.12587699,19264.0,19263.0,0.00019]
[1673637073275,1.12587699,19264.0,19262.0,0.67945082]
[1673637074045,1.22587699,19264.0,19263.0,0.3880234]
[1673637074293,1.42587699,19264.0,19263.0,0.4270234]
[1673637074535,1.12587699,19264.0,19263.0,0.23281404]
[1673637074781,1.13887699,19264.0,19263.0,0.54323276]
[1673637075028,1.12587699,19264.0,19263.0,0.54323276]
[1673637075278,1.052204,19264.0,19263.0,0.58223276]
[1673637076520,1.12937692,19264.0,19263.0,0.58223276]
[1673637076769,1.12937692,19264.0,19263.0,0.1942831]
[1673637076770,2.46785568,19264.0,19263.0,0.1942831]
[1673637077019,2.98695768,19264.0,19263.0,0.039]
[1673637077262,3.31153568,19264.0,19263.0,0.039]
[1673637078023,3.22036276,19264.0,19262.0,0.38809714]
[1673637078274,1.44888476,19263.0,19262.0,0.38809714]
[1673637078518,1.44888476,19263.0,19262.0,0.23281404]
[1673637078519,2.37673676,19263.0,19262.0,0.23281404]
[1673637078776,2.37673676,19263.0,19262.0,0.38815755]
[1673637079000,2.37673676,19263.0,19262.0,0.23281404]
[1673637079493,2.48973676,19263.0,19262.0,0.23681404]
[1673637079755,3.00886576,19263.0,19262.0,0.39215752]
[1673637080781,3.10800764,19263.0,19262.0,0.15934348]
[1673637081029,3.43258564,19263.0,19262.0,0.15934348]
[1673637081524,3.10800764,19263.0,19262.0,0.15934348]
[1673637081765,2.80800764,19263.0,19262.0,0.3921679]
[1673637082015,2.80800764,19263.0,19262.0,0.54723276]
[1673637082260,2.80800764,19263.0,19262.0,0.39217277]
[1673637082513,3.10800764,19263.0,19262.0,0.39217277]
[1673637082996,3.33344376,19263.0,19262.0,0.15935873]
[1673637083268,3.33344376,19263.0,19262.0,0.004]
[1673637084220,3.41525386,19263.0,19262.0,0.004]
[1673637085970,3.09067586,19263.0,19262.0,0.004]
[1673637086962,3.09067586,19263.0,19262.0,0.15935873]
[1673637087229,3.09067586,19263.0,19262.0,0.15928314]
[1673637087472,3.91322649,19263.0,19262.0,0.00392441]
[1673637087722,3.70292155,19263.0,19262.0,0.00392441]
[1673637088468,4.24641391,19263.0,19262.0,0.00392441]
[1673637088715,3.13164376,19263.0,19262.0,0.00392441]
[1673637088961,3.01864376,19263.0,19259.0,0.15535873]
[1673637089216,1.24708476,19262.0,19259.0,0.15535873]
[1673637089461,1.24708476,19262.0,19258.0,0.40667123]
[1673637089462,3.43978876,19261.0,19258.0,0.40667123]
[1673637089706,1.15738476,19260.0,19258.0,0.40667123]
[1673637089957,1.857711,19259.0,19258.0,0.17385719]
[1673637090197,1.857711,19259.0,19258.0,0.40667123]
[1673637090437,1.857711,19259.0,19258.0,0.17385719]
[1673637090692,1.557711,19259.0,19258.0,0.40667123]
[1673637090942,1.557711,19259.0,19258.0,0.99274473]
[1673637091197,1.038474,19259.0,19258.0,0.65170655]
[1673637091441,1.172474,19259.0,19258.0,0.65133122]
[1673637091959,1.172474,19259.0,19258.0,0.26333457]
[1673637092216,1.172474,19259.0,19258.0,0.59614861]
[1673637092474,0.134,19259.0,19258.0,1.58108328]
[1673637092717,0.134,19259.0,19258.0,1.79920812]
[1673637092961,0.134,19259.0,19258.0,1.48884356]
[1673637093451,0.134,19259.0,19258.0,1.38884356]
[1673637093716,0.653237,19259.0,19258.0,1.6942068]
[1673637093959,1.172474,19259.0,19258.0,1.38379795]
[1673637094902,0.653237,19259.0,19258.0,1.38379795]
[1673637095186,0.653237,19259.0,19258.0,1.53897008]
[1673637095187,0.134,19259.0,19258.0,1.53897008]
[1673637095428,0.134,19259.0,19258.0,1.6942068]
[1673637095677,0.653237,19259.0,19258.0,1.35962324]
[1673637095901,0.653237,19259.0,19258.0,0.61957138]
[1673637096175,0.953237,19259.0,19258.0,0.40139238]
[1673637096425,1.472474,19259.0,19258.0,0.61957238]
[1673637096666,1.55428504,19259.0,19258.0,0.40138776]
[1673637096907,1.85428504,19259.0,19258.0,0.16864793]
[1673637097147,1.85428504,19259.0,19258.0,0.01349846]
[1673637097368,2.291711,19259.0,19258.0,0.01349846]
[1673637097613,2.37388295,19259.0,19258.0,0.01349846]
[1673637097865,2.07388295,19259.0,19258.0,0.16864793]
[1673637098109,1.55464595,19259.0,19258.0,0.16864793]
[1673637098577,1.55464595,19259.0,19258.0,0.40138776]
[1673637098816,1.55464595,19259.0,19258.0,0.61956776]
[1673637099300,1.55464595,19259.0,19258.0,0.46441829]
[1673637099548,0.953237,19259.0,19258.0,0.77478153]
[1673637099793,0.953237,19259.0,19258.0,0.16861876]
[1673637100046,1.472474,19259.0,19258.0,0.16861876]
[1673637101287,1.472474,19259.0,19258.0,0.40135859]
[1673637101536,1.472474,19259.0,19258.0,0.61953859]
[1673637102034,0.953237,19259.0,19258.0,0.77478153]
[1673637102278,0.953237,19259.0,19258.0,1.66440817]
[1673637102523,0.953237,19259.0,19258.0,1.40904406]
[1673637102797,0.434,19259.0,19258.0,1.40904406]
[1673637103565,0.434,19259.0,19258.0,1.56440817]
[1673637103825,0.434,19259.0,19258.0,1.17638478]
[1673637104084,0.434,19259.0,19258.0,1.40905996]
[1673637104335,0.953237,19259.0,19258.0,0.61947745]
[1673637104572,1.0468305,19259.0,19258.0,0.40129745]
[1673637104815,1.0468305,19259.0,19258.0,0.38680227]
[1673637105062,1.5660675,19259.0,19258.0,0.16862227]
[1673637105507,1.8660675,19259.0,19258.0,0.16862227]
[1673637105737,1.5660675,19259.0,19258.0,0.16862227]
[1673637106019,1.5660675,19259.0,19258.0,0.40129745]
[1673637106534,1.5660675,19259.0,19258.0,0.16862227]